[Event "106th British-ch 2019"]
[Site "Torquay"]
[Date "2019.07.30"]
[Round "4.21"]
[White "Longson, Sarah N"]
[Black "Stoyanov, Viktor"]
[Result "1/2-1/2"]
[ECO "B14"]
[WhiteElo "2095"]
[BlackElo "2198"]
[Annotator "NA"]
[PlyCount "173"]
[EventDate "2019.07.27"]
[EventType "swiss"]
[EventCountry "GBR"]
[SourceTitle "playchess.com"]
[Source "ChessBase"]
[SourceQuality "1"]
[TimeControl "40/5400+30:1800+30"]

1. e4 {[%emt 0:00:00]} c6 {[%emt 0:00:00]} 2. d4 {[%emt 0:00:00]} d5 {[%emt 0:00:00]} 3. exd5 {[%emt 0:00:07]} cxd5 {[%emt 0:00:00]} 4. c4 {[%emt 0:00:04]} Nf6 {[%emt 0:00:05]} 5. Nc3 {[%emt 0:00:14]} g6 {[%emt 0:00:15]} 6. Bg5 {[%emt 0:00:26]} Bg7 {[%emt 0:00:05]} 7. Be2 {[%emt 0:17:25]} O-O {[%emt 0:01:04]} 8. Nf3 {[%emt 0:08:36]} dxc4 {[%emt 0:02:22]} 9. Ne5 {[%emt 0:02:56]} Nc6 {[%emt 0:10:32]} 10. Nxc6 {[%emt 0:08:55]} bxc6 {[%emt 0:00:01]} 11. Bxc4 {[%emt 0:00:30]} Qa5 {[%emt 0:02:46]} 12. Qd2 {[%emt 0:12:51]} Rd8 {[%emt 0:03:56]} 13. O-O-O {[%emt 0:06:16]} Rb8 {[%emt 0:05:19]} 14. Rhe1 {[%emt 0:01:08]} Rb4 {[%emt 0:04:28]} 15. b3 {[%emt 0:05:17]} Rb7 {[%emt 0:01:33]} 16. Na4 {[%emt 0:05:04]} Qxd2+ {[%emt 0:03:44]} 17. Rxd2 {[%emt 0:01:46]} h6 {[%emt 0:02:59]} 18. Bh4 {[%emt 0:00:00]} Rbd7 {[%emt 0:02:48]} 19. Bg3 {[%emt 0:01:08]} e6 {[%emt 0:01:50]} 20. Be5 {[%emt 0:00:36]} Ng4 21. Bxg7 Kxg7 22. Red1 {[%emt 0:02:27]} Nf6 {[%emt 0:00:16]} 23. Nc5 {[%emt 0:00:09]} Rc7 {[%emt 0:02:17]} 24. Re1 {[%emt 0:00:45]} Nd5 {[%emt 0:02:20]} 25. f3 {[%emt 0:00:36]} g5 {[%emt 0:01:55]} 26. Kb2 {[%emt 0:05:34]} Nf4 27. Red1 {[%emt 0:03:17]} Re7 {[%emt 0:00:33]} 28. g3 {[%emt 0:00:05]} Ng6 {[%emt 0:03:15]} 29. Kc3 {[%emt 0:02:20]} h5 {[%emt 0:01:32]} 30. Bd3 {[%emt 0:01:08]} f5 {[%emt 0:00:00]} 31. Bc4 {[%emt 0:03:42]} Kf6 {[%emt 0:00:00]} 32. b4 {[%emt 0:01:07]} g4 {[%emt 0:01:49]} 33. f4 {[%emt 0:00:22]} h4 {[%emt 0:00:18]} 34. Re1 {[%emt 0:00:40]} Rh8 {[%emt 0:01:13]} 35. Rde2 {[%emt 0:00:29]} hxg3 {[%emt 0:00:28]} 36. hxg3 {[%emt 0:00:21]} Rh3 {[%emt 0:00:17]} 37. Re3 {[%emt 0:00:15]} Nf8 {[%emt 0:00:44]} 38. a4 {[%emt 0:00:52]} Rh2 {[%emt 0:00:39]} 39. b5 {[%emt 0:01:52]} cxb5 {[%emt 0:00:22]} 40. axb5 {[%emt 0:00:04]} Rhh7 {[%emt 0:02:24]} 41. Kb4 {[%emt 0:34:18]} Rc7 {[%emt 0:32:23]} 42. Bb3 {[%emt 0:02:27]} Rhe7 {[%emt 0:00:42]} 43. Rc3 {[%emt 0:04:37]} Rh7 {[%emt 0:02:39]} 44. Rec1 {[%emt 0:00:00]} Ke7 {[%emt 0:00:00]} 45. d5 {[%emt 0:00:00]} exd5 {[%emt 0:00:00]} 46. Bxd5 {[%emt 0:00:00]} Ke8 {[%emt 0:00:00]} 47. Ne4 {[%emt 0:00:00]} Rxc3 {[%emt 0:00:00]} 48. Rxc3 {[%emt 0:00:00]} Kd8 {[%emt 0:00:00]} 49. Ng5 {[%emt 0:00:00]} Rd7 {[%emt 0:00:00]} 50. Nf7+ {[%emt 0:00:00]} Ke7 {[%emt 0:00:00]} 51. Bb3 {[%emt 0:00:00]} Rd4+ {[%emt 0:00:00]} 52. Ka5 {[%emt 0:00:00]} Bd7 {[%emt 0:00:00]} 53. Ne5 {[%emt 0:00:00]} Rd6 {[%emt 0:00:00]} 54. Rc7 {[%emt 0:00:00]} Rd2 {[%emt 0:00:00]} 55. Rxa7 {[%emt 0:00:00]} Rg2 {[%emt 0:00:00]} 56. b6 {[%emt 0:00:00]} Rxg3 {[%emt 0:00:00]} 57. Kb4 {[%emt 0:01:02]} Kd6 {[%emt 0:00:00]} 58. Ra8 {[%emt 0:02:04]} Ne6 {[%emt 0:00:00]} 59. Nxd7 {[%emt 0:04:02]} Rxb3+ {[%emt 0:00:00]} 60. Kxb3 {[%emt 0:00:07]} Kxd7 {[%emt 0:00:00]} 61. Kc4 {[%emt 0:00:46]} Kc6 {[%emt 0:00:00]} 62. Rg8 {[%emt 0:01:19]} Nxf4 {[%emt 0:00:00]} 63. Kd4 {[%emt 0:00:23]} Kxb6 {[%emt 0:00:00]} 64. Ke5 {[%emt 0:00:15]} Nd3+ {[%emt 0:00:00]} 65. Kxf5 {[%emt 0:00:16]} Kc5 {[%emt 0:00:00]} 66. Rxg4 {[%emt 0:00:25]} Kd5 {[%emt 0:00:00]} 67. Rg8 {[%emt 0:00:16]} Kd4 {[%emt 0:00:00]} 68. Rd8+ {[%emt 0:00:09]} Ke3 {[%emt 0:00:00]} 69. Rd7 {[%emt 0:00:30]} Nc5 {[%emt 0:00:00]} 70. Ra7 {[%emt 0:00:15]} Kd4 {[%emt 0:00:00]} 71. Ra8 {[%emt 0:00:51]} Nd3 {[%emt 0:00:00]} 72. Rd8+ {[%emt 0:00:07]} Ke3 {[%emt 0:00:00]} 73. Rd5 {[%emt 0:00:16]} Nb2 {[%emt 0:00:00]} 74. Ra5 {[%emt 0:00:40]} Nd3 {[%emt 0:00:00]} 75. Ra4 {[%emt 0:00:15]} Nc5 {[%emt 0:00:00]} 76. Rh4 {[%emt 0:01:07]} Nd3 {[%emt 0:00:00]} 77. Re4+ {[%emt 0:00:08]} Kf3 {[%emt 0:00:00]} 78. Ra4 {[%emt 0:00:29]} Ke3 {[%emt 0:00:00]} 79. Re4+ {[%emt 0:00:05]} Kf3 {[%emt 0:00:00]} 80. Re8 {[%emt 0:00:20]} Nf2 {[%emt 0:00:00]} 81. Ra8 {[%emt 0:00:33]} Nd3 {[%emt 0:00:00]} 82. Rh8 {[%emt 0:02:34]} Ke3 {[%emt 0:00:00]} 83. Rh4 {[%emt 0:00:14]} Nf2 {[%emt 0:00:00]} 84. Ra4 {[%emt 0:01:01]} Nd3 {[%emt 0:00:00]} 85. Rg4 {[%emt 0:00:14]} Kf3 {[%emt 0:00:00]} 86. Re4 {[%emt 0:00:30]} Nf2 {[%emt 0:00:00]} 87. Rf4+ {[%emt 0:00:39]} 1/2-1/2

[Event "106th British-ch 2019"]
[Site "Torquay"]
[Date "2019.07.30"]
[Round "4.22"]
[White "Crickmore, Neil Eg"]
[Black "Modi, Shyam Jagdish"]
[Result "0-1"]
[ECO "A68"]
[WhiteElo "2187"]
[BlackElo "2098"]
[Annotator "NA"]
[PlyCount "66"]
[EventDate "2019.07.27"]
[EventType "swiss"]
[EventCountry "GBR"]
[SourceTitle "playchess.com"]
[Source "ChessBase"]
[SourceQuality "1"]
[TimeControl "40/5400+30:1800+30"]

1. d4 {[%emt 0:00:00]} Nf6 {[%emt 0:00:00]} 2. c4 {[%emt 0:00:00]} g6 {[%emt 0:00:04]} 3. Nc3 {[%emt 0:00:00]} Bg7 {[%emt 0:00:20]} 4. e4 {[%emt 0:00:00]} d6 {[%emt 0:00:12]} 5. f4 {[%emt 0:00:26]} c5 {[%emt 0:00:31]} 6. d5 {[%emt 0:00:07]} O-O {[%emt 0:00:13]} 7. Nf3 {[%emt 0:00:04]} e6 {[%emt 0:00:32]} 8. Be2 {[%emt 0:00:06]} exd5 {[%emt 0:00:20]} 9. cxd5 {[%emt 0:00:05]} Bg4 {[%emt 0:00:59]} 10. O-O {[%emt 0:00:07]} Nbd7 {[%emt 0:00:32]} 11. h3 {[%emt 0:00:08]} Bxf3 {[%emt 0:00:33]} 12. Bxf3 {[%emt 0:00:06]} Ne8 {[%emt 0:11:30]} 13. Be3 {[%emt 0:09:29]} a6 {[%emt 0:08:12]} 14. a4 {[%emt 0:00:28]} Nc7 {[%emt 0:05:40]} 15. Qd2 {[%emt 0:06:42]} Rb8 {[%emt 0:03:08]} 16. Rae1 {[%emt 0:22:45]} b5 {[%emt 0:04:03]} 17. e5 {[%emt 0:09:01]} dxe5 {[%emt 0:05:44]} 18. fxe5 {[%emt 0:02:11]} Bxe5 {[%emt 0:27:09]} 19. Bxc5 {[%emt 0:08:55]} Nxc5 {[%emt 0:01:11]} 20. Rxe5 {[%emt 0:03:49]} Qd6 {[%emt 0:01:05]} 21. Ree1 {[%emt 0:03:58]} bxa4 {[%emt 0:04:25]} 22. Nd1 {[%emt 0:09:23]} Qb6 {[%emt 0:06:53]} 23. Kh1 {[%emt 0:00:35]} Nb5 {[%emt 0:00:29]} 24. Ne3 {[%emt 0:06:03]} Nd6 {[%emt 0:00:13]} 25. Ng4 {[%emt 0:00:08]} Nf5 {[%emt 0:06:13]} 26. Nh6+ {[%emt 0:10:41]} Nxh6 {[%emt 0:00:02]} 27. Qxh6 {[%emt 0:00:01]} Qd6 {[%emt 0:02:12]} 28. Qd2 {[%emt 0:01:18]} Rb6 {[%emt 0:01:31]} 29. Rc1 {[%emt 0:00:18]} Nb3 {[%emt 0:00:15]} 30. Qe2 {[%emt 0:00:34]} Nxc1 {[%emt 0:00:05]} 31. Rxc1 {[%emt 0:00:01]} Rfb8 {[%emt 0:00:12]} 32. Rc6 {[%emt 0:00:41]} Rxc6 {[%emt 0:03:52]} 33. dxc6 {[%emt 0:00:01]} a3 {[%emt 0:00:18]} 0-1

[Event "106th British-ch 2019"]
[Site "Torquay"]
[Date "2019.07.30"]
[Round "4.23"]
[White "Moore, Graham J"]
[Black "Donaldson, Thomas"]
[Result "1-0"]
[ECO "C31"]
[WhiteElo "2264"]
[BlackElo "2065"]
[Annotator "NA"]
[PlyCount "63"]
[EventDate "2019.07.27"]
[EventType "swiss"]
[EventCountry "GBR"]
[SourceTitle "playchess.com"]
[Source "ChessBase"]
[SourceQuality "1"]
[TimeControl "40/5400+30:1800+30"]

1. e4 {[%emt 0:00:00]} e5 {[%emt 0:00:00]} 2. f4 {[%emt 0:01:56]} d5 {[%emt 0:00:00]} 3. exd5 {[%emt 0:00:11]} c6 {[%emt 0:00:00]} 4. Nc3 {[%emt 0:01:04]} exf4 {[%emt 0:05:27]} 5. Nf3 {[%emt 0:00:26]} Bd6 {[%emt 0:00:25]} 6. d4 {[%emt 0:00:28]} Ne7 {[%emt 0:00:46]} 7. dxc6 {[%emt 0:02:49]} Nbxc6 {[%emt 0:00:13]} 8. Bd3 {[%emt 0:00:57]} O-O {[%emt 0:00:42]} 9. O-O {[%emt 0:00:23]} Ng6 {[%emt 0:07:19]} 10. Ne4 {[%emt 0:01:20]} Bg4 {[%emt 0:03:18]} 11. c3 {[%emt 0:01:48]} Re8 {[%emt 0:02:45]} 12. Qb3 {[%emt 0:04:47]} Bxf3 {[%emt 0:40:21]} 13. gxf3 {[%emt 0:02:01]} Rb8 {[%emt 0:02:29]} 14. Bd2 {[%emt 0:03:15]} Nh4 {[%emt 0:01:47]} 15. Qd5 {[%emt 0:01:51]} Re6 {[%emt 0:02:04]} 16. Kh1 {[%emt 0:03:48]} Ne7 {[%emt 0:08:52]} 17. Qg5 {[%emt 0:00:39]} Neg6 {[%emt 0:05:35]} 18. Qh5 {[%emt 0:03:35]} Be7 {[%emt 0:06:28]} 19. Rae1 {[%emt 0:08:28]} Ne5 {[%emt 0:03:35]} 20. Nf6+ {[%emt 0:00:40]} Bxf6 {[%emt 0:01:27]} 21. Qxh7+ {[%emt 0:00:10]} Kf8 {[%emt 0:00:08]} 22. dxe5 {[%emt 0:00:02]} Bxe5 {[%emt 0:01:55]} 23. Qh8+ {[%emt 0:00:08]} Ke7 {[%emt 0:00:08]} 24. Qxh4+ {[%emt 0:00:04]} Bf6 {[%emt 0:00:20]} 25. Rxe6+ {[%emt 0:02:58]} fxe6 {[%emt 0:00:08]} 26. Qh7 {[%emt 0:03:24]} Qd6 {[%emt 0:00:18]} 27. Be1 {[%emt 0:00:44]} Rd8 {[%emt 0:00:50]} 28. Bc4 {[%emt 0:02:37]} Qc6 {[%emt 0:02:33]} 29. Be2 {[%emt 0:00:39]} Rd5 {[%emt 0:03:00]} 30. Bh4 {[%emt 0:00:16]} Rd2 {[%emt 0:00:47]} 31. Qxg7+ {[%emt 0:00:43]} Kd6 {[%emt 0:00:40]} 32. Qxf6 {[%emt 0:01:24]} 1-0

[Event "106th British-ch 2019"]
[Site "Torquay"]
[Date "2019.07.30"]
[Round "4.24"]
[White "Wall, Tim P"]
[Black "Jaufarally, Nadia"]
[Result "1-0"]
[ECO "A49"]
[WhiteElo "2246"]
[BlackElo "1944"]
[Annotator "ChessBase"]
[PlyCount "127"]
[EventDate "2019.07.27"]
[EventType "swiss"]
[EventCountry "GBR"]
[SourceTitle "playchess.com"]
[Source "ChessBase"]
[SourceQuality "1"]
[TimeControl "40/5400+30:1800+30"]

1. d4 {[%emt 0:00:00]} Nf6 {[%emt 0:01:04]} 2. Nf3 {[%emt 0:00:01]} g6 {[%emt 0:00:31]} 3. g3 {[%emt 0:00:11]} Bg7 {[%emt 0:00:06]} 4. Bg2 {[%emt 0:00:07]} O-O {[%emt 0:00:07]} 5. O-O {[%emt 0:00:15]} d6 {[%emt 0:00:48]} 6. b3 {[%emt 0:00:51]} c5 {[%emt 0:01:03]} 7. Bb2 {[%emt 0:00:35]} cxd4 {[%emt 0:01:17]} 8. Nxd4 {[%emt 0:00:16]} d5 {[%emt 0:00:43]} 9. c4 {[%emt 0:01:33]} e5 {[%emt 0:04:16]} 10. Nf3 {[%emt 0:04:50]} e4 {[%emt 0:01:22]} 11. Nd4 {[%emt 0:00:32]} dxc4 {[%emt 0:00:52]} 12. Na3 {[%emt 0:06:08]} c3 {[%emt 0:10:07]} 13. Bxc3 {[%emt 0:01:23]} Qe7 {[%emt 0:08:23]} 14. Nc4 {[%emt 0:05:38]} Rd8 {[%emt 0:00:48]} 15. Bb2 {[%emt 0:10:51]} Nd5 {[%emt 0:11:58]} 16. e3 {[%emt 0:17:20]} Na6 {[%emt 0:13:26]} 17. Ba3 {[%emt 0:11:45]} Ndb4 {[%emt 0:13:14]} 18. Qe2 {[%emt 0:05:56]} h5 {[%emt 0:04:57]} 19. h3 {[%emt 0:00:47]} Be6 {[%emt 0:04:19]} 20. Rad1 {[%emt 0:07:58]} Rac8 {[%emt 0:03:37]} 21. Rd2 {[%emt 0:02:30]} Qe8 {[%emt 0:02:18]} 22. Nxe6 {[%emt 0:03:49]} Qxe6 {[%emt 0:00:33]} 23. Rfd1 {[%emt 0:00:43]} Rxd2 {[%emt 0:01:37]} 24. Qxd2 {[%emt 0:00:14]} b5 {[%emt 0:02:41]} 25. Bxb4 {[%emt 0:10:00]} bxc4 {[%emt 0:04:16]} 26. Bc3 {[%emt 0:01:43]} Bxc3 {[%emt 0:03:41]} 27. Qxc3 {[%emt 0:00:07]} cxb3 {[%emt 0:00:25]} 28. Qxb3 {[%emt 0:00:09]} Qf5 {[%emt 0:01:45]} 29. Bf1 {[%emt 0:04:32]} Nc5 {[%emt 0:00:45]} 30. Qd5 {[%emt 0:00:05]} Qxd5 {[%emt 0:02:52]} 31. Rxd5 {[%emt 0:00:06]} Kf8 {[%emt 0:00:43]} 32. Bc4 {[%emt 0:00:41]} Ke7 {[%emt 0:00:35]} 33. g4 {[%emt 0:00:27]} hxg4 {[%emt 0:00:26]} 34. hxg4 {[%emt 0:00:06]} f6 {[%emt 0:00:43]} 35. Kg2 {[%emt 0:00:36]} Ne6 {[%emt 0:00:27]} 36. Bb5 {[%emt 0:01:19]} Nc5 {[%emt 0:00:28]} 37. Kg3 {[%emt 0:00:27]} Ke6 {[%emt 0:00:34]} 38. Bc4 {[%emt 0:00:43]} Ke7 {[%emt 0:00:35]} 39. Rd4 {[%emt 0:01:29]} Rc7 {[%emt 0:00:30]} 40. Kf4 {[%emt 0:01:19]} Nd3+ {[%emt 0:00:34]} 41. Bxd3 {[%emt 0:08:06]} exd3 {[%emt 0:00:07]} 42. Rxd3 {[%emt 0:00:08]} Rc2 {[%emt 0:00:30]} 43. Ra3 {[%emt 0:00:23]} Rxf2+ {[%emt 0:01:59]} 44. Ke4 {[%emt 0:03:54]} f5+ {[%emt 0:04:03]} 45. gxf5 {[%emt 0:00:09]} Rxf5 {[%emt 0:12:30]} 46. Rxa7+ {[%emt 0:00:08]} Kd8 {[%emt 0:01:44]} 47. a4 {[%emt 0:05:54]} Kc8 {[%emt 0:01:27]} 48. Ra6 {[%emt 0:03:49]} Kb7 {[%emt 0:01:44]} 49. Rxg6 {[%emt 0:01:05]} Ra5 {[%emt 0:00:14]} 50. Rd6 {[%emt 0:00:37]} Rxa4+ {[%emt 0:00:33]} 51. Ke5 {[%emt 0:00:07]} Kc7 {[%emt 0:01:06]} 52. Rd4 {[%emt 0:01:50]} Ra8 {[%emt 0:03:17]} 53. e4 {[%emt 0:01:42]} Ra6 {[%emt 0:01:25]} 54. Kf5 {[%emt 0:00:42]} Rb6 {[%emt 0:02:25]} 55. e5 {[%emt 0:00:20]} Rh6 {[%emt 0:00:55]} 56. e6 {[%emt 0:00:57]} Rh1 {[%emt 0:00:22]} 57. Kf6 {[%emt 0:00:54]} Rf1+ {[%emt 0:00:13]} 58. Ke7 {[%emt 0:00:10]} Rf2 {[%emt 0:02:34]} 59. Rc4+ {[%emt 0:00:29]} Kb6 {[%emt 0:01:22]} 60. Kd7 {[%emt 0:00:32]} Rd2+ {[%emt 0:00:30]} 61. Ke8 {[%emt 0:00:12]} Re2 {[%emt 0:00:39]} 62. e7 {[%emt 0:00:07]} Kb5 {[%emt 0:00:54]} 63. Rf4 {[%emt 0:03:02]} Ra2 {[%emt 0:00:53]} 64. Kf8 {[%emt 0:00:42]} 1-0

[Event "106th British-ch 2019"]
[Site "Torquay"]
[Date "2019.07.30"]
[Round "4.25"]
[White "Yoon, Jacob D"]
[Black "Villiers, Thomas"]
[Result "1-0"]
[ECO "B02"]
[WhiteElo "1963"]
[BlackElo "2218"]
[Annotator "NA"]
[PlyCount "91"]
[EventDate "2019.07.27"]
[EventType "swiss"]
[EventCountry "GBR"]
[SourceTitle "playchess.com"]
[Source "ChessBase"]
[SourceQuality "1"]
[TimeControl "40/5400+30:1800+30"]

1. e4 {[%emt 0:00:00]} Nf6 {[%emt 0:00:00]} 2. e5 {[%emt 0:00:00]} Nd5 {[%emt 0:00:00]} 3. Nc3 {[%emt 0:00:25]} e6 {[%emt 0:00:02]} 4. d4 {[%emt 0:01:01]} d6 {[%emt 0:01:06]} 5. Nf3 {[%emt 0:02:34]} Nxc3 {[%emt 0:03:04]} 6. bxc3 {[%emt 0:00:08]} dxe5 {[%emt 0:00:41]} 7. Nxe5 {[%emt 0:00:11]} Nd7 {[%emt 0:00:08]} 8. f4 {[%emt 0:07:05]} Nxe5 {[%emt 0:00:41]} 9. fxe5 {[%emt 0:03:16]} Qh4+ {[%emt 0:00:17]} 10. Kd2 {[%emt 0:00:12]} Be7 {[%emt 0:01:03]} 11. Qf3 {[%emt 0:00:37]} Bd7 {[%emt 0:05:37]} 12. g3 {[%emt 0:01:50]} Qg5+ {[%emt 0:01:25]} 13. Ke1 {[%emt 0:00:38]} Qg6 {[%emt 0:01:58]} 14. Bd3 {[%emt 0:01:40]} Bc6 {[%emt 0:00:41]} 15. Qe2 {[%emt 0:04:07]} Bxh1 {[%emt 0:00:09]} 16. Bxg6 {[%emt 0:00:04]} hxg6 {[%emt 0:00:07]} 17. Kf1 {[%emt 0:04:28]} g5 {[%emt 0:03:44]} 18. Kg1 {[%emt 0:00:30]} Bc6 {[%emt 0:00:08]} 19. a4 {[%emt 0:07:27]} Kd7 {[%emt 0:00:56]} 20. Ba3 {[%emt 0:01:07]} Bxa3 {[%emt 0:01:34]} 21. Rxa3 {[%emt 0:00:05]} Rh3 {[%emt 0:00:20]} 22. c4 {[%emt 0:04:11]} Rah8 {[%emt 0:00:56]} 23. d5 {[%emt 0:03:24]} exd5 {[%emt 0:00:13]} 24. cxd5 {[%emt 0:00:03]} Bxd5 {[%emt 0:00:10]} 25. Rd3 {[%emt 0:00:04]} c6 {[%emt 0:02:40]} 26. c4 {[%emt 0:00:08]} Rxh2 {[%emt 0:00:13]} 27. Qxh2 {[%emt 0:00:29]} Rxh2 {[%emt 0:00:05]} 28. Kxh2 {[%emt 0:00:03]} Ke6 {[%emt 0:00:05]} 29. cxd5+ {[%emt 0:00:03]} cxd5 {[%emt 0:00:07]} 30. Rc3 {[%emt 0:00:48]} d4 {[%emt 0:00:19]} 31. Rc7 {[%emt 0:00:43]} Kxe5 {[%emt 0:00:20]} 32. Rxb7 {[%emt 0:00:04]} a6 {[%emt 0:00:12]} 33. Rxf7 {[%emt 0:01:15]} d3 {[%emt 0:00:03]} 34. Rxg7 {[%emt 0:00:10]} Ke4 {[%emt 0:00:11]} 35. Rd7 {[%emt 0:00:21]} Ke3 {[%emt 0:00:31]} 36. Kh3 {[%emt 0:00:11]} d2 {[%emt 0:00:17]} 37. Kg4 {[%emt 0:00:15]} Ke2 {[%emt 0:00:04]} 38. Kxg5 {[%emt 0:00:07]} d1=R {[%emt 0:00:04]} 39. Rxd1 {[%emt 0:00:05]} Kxd1 {[%emt 0:00:09]} 40. Kf4 {[%emt 0:00:07]} Kc2 {[%emt 0:00:02]} 41. g4 {[%emt 0:30:02]} Kb3 {[%emt 0:30:04]} 42. g5 {[%emt 0:00:10]} Kxa4 {[%emt 0:00:02]} 43. g6 {[%emt 0:00:03]} Kb4 {[%emt 0:00:05]} 44. g7 {[%emt 0:00:01]} a5 {[%emt 0:00:03]} 45. g8=Q {[%emt 0:00:04]} a4 {[%emt 0:00:06]} 46. Qa2 {[%emt 0:00:03]} 1-0

[Event "106th British-ch 2019"]
[Site "Torquay"]
[Date "2019.07.30"]
[Round "4.26"]
[White "Krzyzanowski, Patryk"]
[Black "Starley, Robert"]
[Result "1-0"]
[ECO "E01"]
[WhiteElo "2114"]
[BlackElo "2058"]
[Annotator "NA"]
[PlyCount "62"]
[EventDate "2019.07.27"]
[EventType "swiss"]
[EventCountry "GBR"]
[SourceTitle "playchess.com"]
[Source "ChessBase"]
[SourceQuality "1"]
[TimeControl "40/5400+30:1800+30"]

1. Nf3 {[%emt 0:00:00]} d5 {[%emt 0:00:00]} 2. d4 {[%emt 0:00:00]} Nf6 {[%emt 0:00:07]} 3. c4 {[%emt 0:00:18]} c6 {[%emt 0:00:19]} 4. Nc3 {[%emt 0:02:54]} e6 {[%emt 0:00:23]} 5. g3 {[%emt 0:06:25]} Nbd7 {[%emt 0:00:29]} 6. Bg2 {[%emt 0:00:25]} dxc4 {[%emt 0:01:04]} 7. O-O {[%emt 0:01:09]} Bb4 {[%emt 0:02:03]} 8. Qc2 {[%emt 0:00:52]} Nd5 {[%emt 0:02:17]} 9. Nd1 {[%emt 0:04:24]} O-O {[%emt 0:02:22]} 10. Ng5 {[%emt 0:02:04]} N5f6 {[%emt 0:01:06]} 11. Qxc4 {[%emt 0:00:16]} Be7 {[%emt 0:00:46]} 12. Qc2 {[%emt 0:06:15]} h6 {[%emt 0:01:30]} 13. Nf3 {[%emt 0:00:22]} c5 {[%emt 0:03:58]} 14. Nc3 {[%emt 0:01:53]} cxd4 {[%emt 0:01:43]} 15. Nxd4 {[%emt 0:02:21]} a6 {[%emt 0:01:52]} 16. Rd1 {[%emt 0:03:39]} Qc7 {[%emt 0:02:13]} 17. Be3 {[%emt 0:05:02]} Nb6 {[%emt 0:04:22]} 18. Rac1 {[%emt 0:02:06]} e5 {[%emt 0:12:54]} 19. Nf3 {[%emt 0:08:03]} Ng4 {[%emt 0:04:01]} 20. Qb3 {[%emt 0:17:00]} Nd7 {[%emt 0:09:07]} 21. Nd5 {[%emt 0:02:48]} Qd8 {[%emt 0:00:46]} 22. Bb6 {[%emt 0:00:27]} Nxb6 {[%emt 0:01:47]} 23. Nxb6 {[%emt 0:00:18]} Bd6 {[%emt 0:09:56]} 24. Nxa8 {[%emt 0:02:17]} Qe7 {[%emt 0:01:19]} 25. Qd5 {[%emt 0:09:03]} Rd8 {[%emt 0:02:53]} 26. Rxc8 {[%emt 0:00:48]} Rxc8 {[%emt 0:00:58]} 27. Qxd6 {[%emt 0:00:11]} Qxd6 {[%emt 0:02:03]} 28. Rxd6 {[%emt 0:00:22]} Rxa8 {[%emt 0:00:14]} 29. h3 {[%emt 0:00:20]} Nf6 {[%emt 0:00:33]} 30. Nxe5 {[%emt 0:00:17]} Re8 {[%emt 0:00:45]} 31. f4 {[%emt 0:01:01]} Nh5 {[%emt 0:02:54]} 1-0

[Event "106th British-ch 2019"]
[Site "Torquay"]
[Date "2019.07.30"]
[Round "4.27"]
[White "Kahn, Tito"]
[Black "Ledger, Dave J"]
[Result "0-1"]
[ECO "A45"]
[WhiteElo "1921"]
[BlackElo "2168"]
[Annotator "NA"]
[PlyCount "78"]
[EventDate "2019.07.27"]
[EventType "swiss"]
[EventCountry "GBR"]
[SourceTitle "playchess.com"]
[Source "ChessBase"]
[SourceQuality "1"]
[TimeControl "40/5400+30:1800+30"]

1. d4 {[%emt 0:00:00]} Nf6 {[%emt 0:00:00]} 2. Bf4 {[%emt 0:00:00]} c5 {[%emt 0:00:26]} 3. d5 {[%emt 0:01:01]} b5 {[%emt 0:01:38]} 4. c4 {[%emt 0:06:49]} d6 {[%emt 0:04:14]} 5. Qc2 {[%emt 0:02:54]} g6 {[%emt 0:04:20]} 6. e4 {[%emt 0:00:41]} Bg7 {[%emt 0:00:47]} 7. cxb5 {[%emt 0:09:51]} a6 {[%emt 0:01:03]} 8. b6 {[%emt 0:10:54]} O-O {[%emt 0:05:42]} 9. Nf3 {[%emt 0:00:37]} Qxb6 {[%emt 0:09:04]} 10. Nc3 {[%emt 0:00:22]} Ne8 {[%emt 0:01:27]} 11. Bd3 {[%emt 0:08:05]} Nc7 {[%emt 0:03:27]} 12. O-O {[%emt 0:01:29]} Nd7 {[%emt 0:03:18]} 13. Nd2 {[%emt 0:11:23]} Nb5 {[%emt 0:01:53]} 14. Nc4 {[%emt 0:02:05]} Qc7 {[%emt 0:00:46]} 15. Ne2 {[%emt 0:06:07]} Nb6 {[%emt 0:07:20]} 16. a4 {[%emt 0:04:20]} Nxc4 {[%emt 0:03:39]} 17. Bxc4 {[%emt 0:04:23]} Nd4 {[%emt 0:00:10]} 18. Nxd4 {[%emt 0:01:26]} Bxd4 {[%emt 0:00:50]} 19. Bd2 {[%emt 0:00:47]} f5 {[%emt 0:07:32]} 20. Bd3 {[%emt 0:02:49]} fxe4 {[%emt 0:00:53]} 21. Bxe4 {[%emt 0:00:01]} Bf5 {[%emt 0:00:23]} 22. Bc3 {[%emt 0:01:17]} Bxc3 {[%emt 0:03:08]} 23. bxc3 {[%emt 0:00:18]} c4 {[%emt 0:00:37]} 24. f3 {[%emt 0:08:00]} Rab8 {[%emt 0:03:22]} 25. g4 {[%emt 0:05:33]} Bxe4 {[%emt 0:00:44]} 26. Qxe4 {[%emt 0:01:19]} Rb3 {[%emt 0:04:31]} 27. Rac1 {[%emt 0:01:29]} Rb2 {[%emt 0:04:06]} 28. Kh1 {[%emt 0:02:49]} Rf7 {[%emt 0:01:25]} 29. f4 {[%emt 0:00:43]} Qd7 {[%emt 0:02:55]} 30. f5 {[%emt 0:01:10]} gxf5 {[%emt 0:00:21]} 31. gxf5 {[%emt 0:01:34]} Kf8 {[%emt 0:01:13]} 32. Rf3 {[%emt 0:00:15]} Qxa4 {[%emt 0:01:27]} 33. Rg3 {[%emt 0:00:55]} Qa2 {[%emt 0:01:30]} 34. Qh4 {[%emt 0:02:26]} Ke8 {[%emt 0:06:32]} 35. Re1 {[%emt 0:00:54]} Re2 {[%emt 0:02:41]} 36. Re3 {[%emt 0:00:35]} Rxe3 {[%emt 0:00:51]} 37. Rxe3 {[%emt 0:00:05]} Qb1+ {[%emt 0:00:12]} 38. Kg2 {[%emt 0:01:24]} Qxf5 {[%emt 0:00:18]} 39. Re1 {[%emt 0:00:53]} Rg7+ {[%emt 0:00:33]} 0-1